Cogmind - Beta 10.2 @@@ ROGUE MODE // 2021.05.23 @ 17:13:54 Player: ChromeKnight Result: Self-destructed Performance ------------- Evolutions (4) 2000 Regions Visited (7) 1400 Robots Destroyed (54) 270 Value Destroyed (1603) 1603 Prototype IDs (2) 40 Alien Tech Used (0) 0 Bonus (89) 89 TOTAL SCORE: 5402 Bonus ------- High Alert Combat Kills 321 Follower Combat Kills 74 Friendly Fire -306 Cogmind --------- Core Integrity 330/850 Matter 300/300 Energy 150/150 System Corruption 3% Temperature Cool (0) Movement Walking (120) Location -6/Extension Parts ------- > --- POWER (1) -------- Light Angular Momentum Engine > --- PROPULSION (3) --- Carbon-fiber Leg Carbon-fiber Leg Flexi-carbon Leg > --- UTILITY (8) ------ Advanced Heat Sink Advanced Heat Sink Large Storage Unit Advanced Visual Processing Unit Improved Targeting Computer Melee Analysis Suite Melee Analysis Suite > --- WEAPON (3) ------- (None) > --- INVENTORY (10) --- Carbon-fiber Leg Carbon-fiber Leg Carbon-fiber Leg Carbon-fiber Leg Flexi-carbon Leg Gravmag System Improved Gravmag System Improved Heat Sink Improved Heat Sink Matter Compressor (250) Peak State ------------ > --- POWER ------------ Reinforced Deuterium Engine > --- PROPULSION ------- Carbon-fiber Leg Carbon-fiber Leg Flexi-carbon Leg > --- UTILITY ---------- Advanced Heat Sink Advanced Heat Sink Large Storage Unit Advanced Visual Processing Unit Improved Targeting Computer Improved Targeting Computer Melee Analysis Suite Melee Analysis Suite > --- WEAPON ----------- Heavy Laser Beamcaster Flak Gun > --- INVENTORY -------- Carbon-fiber Leg Carbon-fiber Leg Carbon-fiber Leg Carbon-fiber Leg Flexi-carbon Leg Gravmag System Improved Gravmag System Improved Heat Sink Improved Heat Sink Matter Compressor [Rating: 55] Favorites ----------- Power Ion Engine Engine Ion Engine Propulsion Aluminum Leg Treads Light Treads Leg Aluminum Leg Hover Unit Improved Gravmag System Utility Improved Targeting Computer Device Advanced Heat Sink Storage Large Storage Unit Processor Improved Targeting Computer Hackware Improved Hacking Suite Protection Hardened Light Armor Plating Weapon High-powered Shotgun Energy Gun Heavy Laser Ballistic Gun High-powered Shotgun Ballistic Cannon Bore Cannon Build | -11 -10 -9 -8 -8 -8 -6 -6 ------- Run | Scr Mat Mat Mat Sto Rec Fac Ext Slots Evolved 8 | . . 2 2 . . 4 . Power . | . . . . . . . . Propulsion 1 | . . . 1 . . . . Utility 6 | . . 2 1 . . 3 . Weapon 1 | . . . . . . 1 . Parts Attached 69 | 6 3 2 10 6 . 9 33 Power 7 | 1 . . 1 1 . . 4 Engine 7 | 1 . . 1 1 . . 4 Core . | . . . . . . . . Reactor . | . . . . . . . . Propulsion 21 | 2 . . 4 2 . 3 10 Treads 5 | . . . 3 2 . . . Leg 12 | 2 . . 1 . . . 9 Wheel . | . . . . . . . . Hover 4 | . . . . . . 3 1 Flight . | . . . . . . . . Utility 18 | 1 2 2 2 . . 4 7 Device 5 | . . . . . . 2 3 Storage 2 | 1 1 . . . . . . Processor 8 | . 1 2 2 . . 1 2 Hackware 1 | . . . . . . . 1 Protection 2 | . . . . . . 1 1 Artifact . | . . . . . . . . Weapon 23 | 2 1 . 3 3 . 2 12 Energy Gun 5 | . . . . . . . 5 Energy Cannon . | . . . . . . . . Ballistic Gun 16 | 2 1 . 3 3 . 2 5 Ballistic Cannon 2 | . . . . . . . 2 Launcher . | . . . . . . . . Special Weapon . | . . . . . . . . Impact Weapon . | . . . . . . . . Slashing Weapon . | . . . . . . . . Piercing Weapon . | . . . . . . . . Special Melee Weapon . | . . . . . . . . Unidentified Prototypes 2 | . . . . 2 . . . Parts Lost 20 | . . . 1 1 . . 18 Power 2 | . . . . . . . 2 Propulsion 5 | . . . . 1 . . 4 Utility 6 | . . . 1 . . . 5 Weapon 7 | . . . . . . . 7 Highest Loss Streak 12 | . . . 1 1 . . 12 Average Slot Usage (%) 93 | . 89 100 97 99 100 92 84 Engine 8 | . 14 11 9 9 9 6 5 Treads 7 | . . . 3 26 27 1 . Leg 10 | . 28 22 22 . . . 5 Hover 5 | . . . . . . 18 12 Device 1 | . . . . . . 1 5 Storage 8 | . 14 11 9 9 9 6 6 Processor 28 | . 3 33 34 36 36 32 25 Protection 1 | . . . . . . 5 3 Ballistic Gun 17 | . 28 22 18 18 18 18 11 Naked Turns . | . . . . . . . . Heaviest Build 46 | 11 23 23 29 30 30 41 46 Greatest Support 62 | 20 20 20 62 62 62 62 50 Greatest Overweight (x) 5 | . 1 1 1 . . 2 5 Average Overweight (x) . | . . 1 . . . . . Largest Inventory Capacity 12 | 6 12 10 10 10 10 10 10 Average Capacity 9 | 5 9 10 10 10 10 10 10 Most Carried 10 | 1 10 10 10 10 10 10 10 Average Carried 8 | . 4 9 9 9 10 8 9 Final Capacity 10 | 6 10 10 10 10 10 10 10 Final Carried 10 | 1 10 10 10 10 10 10 10 Class Distribution -------------------- 64% | Mutant 16% | Gunner 7% | Scavenger-Mutant 5% | Commander-Gunner 4% | Scavenger-Gunner Dominant Class ---------------- Mutant | -10/Materials Mutant | -9/Materials Mutant | -8/Materials Mutant | -8/Storage Mutant | -8/Recycling Gunner | -6/Factory Gunner | -6/Extension Resources | -11 -10 -9 -8 -8 -8 -6 -6 ----------- Run | Scr Mat Mat Mat Sto Rec Fac Ext Matter Collected 2381 | 211 107 . 255 371 117 376 944 Remotely 390 | . . . . . . 117 273 Salvage Created 2214 | . 113 . 323 371 . 117 1290 Parts 120 | . 8 . 26 19 . 8 59 Haulers Intercepted 3 | . 1 . . 2 . . . Recyclers Shooed 1 | . . . . . . . 1 Parts Field Recycled . | . . . . . . . . Retrieved Matter . | . . . . . . . . Parts Self-Destructed . | . . . . . . . . Prevented . | . . . . . . . . Kills | -11 -10 -9 -8 -8 -8 -6 -6 ------- Run | Scr Mat Mat Mat Sto Rec Fac Ext Combat Hostiles Destroyed 42 | . 2 . 13 7 . 2 18 Melee 1 | . . . . . . . 1 Guns 40 | . 2 . 13 7 . 2 16 Cannons 1 | . . . . . . . 1 Classes Destroyed 12 | . 3 . 2 1 . 2 4 Worker 1 | . . . . . . 1 . Builder 1 | . . . 1 . . . . Hauler 3 | . 1 . . 2 . . . Recycler 4 | . . . . 2 . . 2 Watcher 1 | . . . . . . . 1 Swarmer 16 | . 1 . 8 4 . . 3 Grunt 14 | . 1 . 2 2 . . 9 Brawler 1 | . . . . . . . 1 Sentry 9 | . . . 3 1 . 1 4 Hunter 1 | . . . . . . . 1 Programmer 1 | . . . . . . 1 . Thug 1 | . . . . . . . 1 Butcher 1 | . . . . . . . 1 Best Kill Streak 5 | . 3 . 5 5 . 1 5 Combat Bots Only 4 | . 2 . 4 4 . 1 4 Max Kills in Single Turn 2 | . 1 . 1 1 . 1 2 Gunslinging . | . . . . . . . . Exploded . | . . . . . . . . Melee 1 | . . . . . . . 1 Uniques/NPCs Destroyed . | . . . . . . . . Combat | -11 -10 -9 -8 -8 -8 -6 -6 -------- Run | Scr Mat Mat Mat Sto Rec Fac Ext Damage Taken 3689 | . 90 . 414 358 . 190 2637 Core 705 | . 19 . 124 42 . 29 491 Absorbed by Shields . | . . . . . . . . Core Remaining (%) 90 | 100 92 100 . . 69 . . Volleys Fired 165 | . 14 1 27 33 . 7 83 Largest 3 | . 2 2 2 2 . 3 3 Hottest 172 | . 40 40 50 50 . 78 172 Shots Fired 325 | . 28 2 54 66 . 21 154 Gun 294 | . 28 2 54 66 . 21 123 Cannon 31 | . . . . . . . 31 Launcher . | . . . . . . . . Special . | . . . . . . . . Kinetic 309 | . 28 2 54 66 . 21 138 Thermal 16 | . . . . . . . 16 Explosive . | . . . . . . . . Electromagnetic . | . . . . . . . . Robot Hit Streak 22 | . 6 1 13 21 . 22 15 Robot Miss Streak 8 | . 3 4 4 3 . 1 8 Penetration Max 1 | . . . . . . . 1 Secondary Targets 4 | . 1 . 1 . . . 2 Max Gunslinging Chain 1 | . 1 . 1 . . . 1 Shots Hit Robots 233 | . 19 1 44 50 . 17 102 Core Hits 141 | . 7 . 22 21 . 6 85 Critical Hits 11 | . . . . 1 . . 10 Critical Kills 4 | . . . . . . . 4 Critical Parts Destroyed 7 | . . . . 1 . . 6 Melee Attacks . | . . . . . . . . Impact . | . . . . . . . . Slashing . | . . . . . . . . Piercing . | . . . . . . . . Sneak Attacks . | . . . . . . . . Combat Hostiles . | . . . . . . . . Follow-up Attacks . | . . . . . . . . Damage Inflicted 4252 | . 184 6 660 865 2 258 2277 Guns 3987 | . 184 6 660 865 . 258 2014 Cannons 214 | . . . . . . . 214 Explosions . | . . . . . . . . Melee . | . . . . . . . . Ramming 51 | . . . . . 2 . 49 Kinetic 3970 | . 184 6 660 865 . 258 1997 Thermal 231 | . . . . . . . 231 Explosive . | . . . . . . . . Electromagnetic . | . . . . . . . . Impact . | . . . . . . . . Slashing . | . . . . . . . . Piercing . | . . . . . . . . Highest Corruption 3 | . 2 . . . . . 3 Average Corruption 2 | . 2 . . . . . 3 Corruption Purged . | . . . . . . . . Effects 9 | . 3 . . . . . 6 Message Errors 2 | . 1 . . . . . 1 Matter Fused 1 | . . . . . . . 1 Heat Flow Errors 2 | . 1 . . . . . 1 Energy Discharges 2 | . . . . . . . 2 Data Loss (minor) 1 | . 1 . . . . . . Targeting Errors 1 | . . . . . . . 1 Overload Shots . | . . . . . . . . Overflow Damage . | . . . . . . . . Projectiles . | . . . . . . . . Explosions . | . . . . . . . . Melee . | . . . . . . . . Knockbacks 4 | . . . . . . . 4 Impact . | . . . . . . . . Kinetic 4 | . . . . . . . 4 Secondary . | . . . . . . . . Self-Inflicted Damage 15 | . . . . . . . 15 Shots . | . . . . . . . . Rammed 8 | . . . . . 1 . 7 Targets Rammed 10 | . . . . . 1 . 9 Kicked 2 | . . . . . . . 2 Crushed . | . . . . . . . . Highest Temperature 219 | . 145 . . 9 . 111 219 Average Temperature 42 | . 43 . . 9 . 50 41 Received Heat Transfer 1170 | . 42 . 81 162 . 66 819 Siege Activations . | . . . . . . . . Robots Corrupted . | . . . . . . . . Combat Hostiles . | . . . . . . . . Parts Fried . | . . . . . . . . Impact Corruptions . | . . . . . . . . Robots Melted . | . . . . . . . . Combat Hostiles . | . . . . . . . . Parts Melted . | . . . . . . . . Heat Transferred 444 | . . . . . . . 444 Parts Sabotaged . | . . . . . . . . Parts Stolen . | . . . . . . . . Parts Stripped . | . . . . . . . . Power Chain Reactions . | . . . . . . . . Missiles Intercepted . | . . . . . . . . Alert | -11 -10 -9 -8 -8 -8 -6 -6 ------- Run | Scr Mat Mat Mat Sto Rec Fac Ext Peak Influence 1023 | . 107 44 365 274 28 1023 836 Initial 911 | . . 44 18 69 28 911 501 Average 366 | . 65 44 147 192 28 941 697 Maximum Alert Level 3 | . . . 1 1 . 3 3 Low Security (%) 47 | 100 100 100 82 41 100 . . Level 1 13 | . . . 17 58 . . . Level 2 18 | . . . . . . . 63 Level 3 20 | . . . . . . 100 36 Level 4 . | . . . . . . . . Level 5 . | . . . . . . . . High Security . | . . . . . . . . Max Security . | . . . . . . . . Squads Dispatched 8 | . . . 1 2 . 1 4 Investigation 2 | . . . . 1 . . 1 Extermination . | . . . . . . . . Reinforcement 4 | . . . 1 . . 1 2 Assault 1 | . . . . . . . 1 Garrison 1 | . . . . 1 . . . Intercept . | . . . . . . . . Construction Impeded . | . . . . . . . . Haulers Reinforced . | . . . . . . . . Stealth | -11 -10 -9 -8 -8 -8 -6 -6 --------- Run | Scr Mat Mat Mat Sto Rec Fac Ext Distress Signals 3 | . . . 1 . . . 2 Communications Jammed . | . . . . . . . . Distress Signals . | . . . . . . . . Times Spotted 84 | . 7 . 16 8 8 6 39 Peak Tracking Total 6 | . 4 . 5 4 4 3 6 Tactical Retreats 10 | . 1 . . 1 . 1 7 Traps | -11 -10 -9 -8 -8 -8 -6 -6 ------- Run | Scr Mat Mat Mat Sto Rec Fac Ext Traps Triggered 3 | . 1 . . . . . 2 Indirectly . | . . . . . . . . Trap Hack Attempts . | . . . . . . . . Triggered . | . . . . . . . . Disarmed 3 | . . . . 3 . . . Reprogrammed . | . . . . . . . . Reused . | . . . . . . . . Traps Extracted . | . . . . . . . . Installed . | . . . . . . . . Triggered 1 | . . . . . . . 1 Machines | -11 -10 -9 -8 -8 -8 -6 -6 ---------- Run | Scr Mat Mat Mat Sto Rec Fac Ext Machines Disabled 1 | . . . . . . . 1 Max in Single Turn 1 | . . . . . . . 1 Machines Sabotaged . | . . . . . . . . Garrisons Compromised . | . . . . . . . . Overloaded Fab Kills . | . . . . . . . . Fab Network Shutdowns . | . . . . . . . . Hacking | -11 -10 -9 -8 -8 -8 -6 -6 --------- Run | Scr Mat Mat Mat Sto Rec Fac Ext Machines Accessed 7 | . . . . 3 . 2 2 Terminals 6 | . . . . 2 . 2 2 Fabricators . | . . . . . . . . Repair Stations . | . . . . . . . . Recycling Units . | . . . . . . . . Scanalyzers . | . . . . . . . . Garrison Access 1 | . . . . 1 . . . Total Hacks 14 | . . . . 6 . 3 5 Successful 5 | . . . . 2 . 2 1 Failed 9 | . . . . 4 . 1 4 Catastrophic 1 | . . . . 1 . . . Database Lockouts . | . . . . . . . . Manual 1 | . . . . 1 . . . Terminals 11 | . . . . 3 . 3 5 Fabricators . | . . . . . . . . Repair Stations . | . . . . . . . . Recycling Units . | . . . . . . . . Scanalyzers . | . . . . . . . . Garrison Access 3 | . . . . 3 . . . Terminal Hacks 5 | . . . . 2 . 2 1 Record 1 | . . . . . . 1 . Open Door 3 | . . . . 1 . 1 1 Disarm Traps 1 | . . . . 1 . . . Fabricator Hacks . | . . . . . . . . Repair Station Hacks . | . . . . . . . . Recycling Unit Hacks . | . . . . . . . . Scanalyzer . | . . . . . . . . Garrison Access Hacks . | . . . . . . . . Unauthorized Hacks . | . . . . . . . . Terminals . | . . . . . . . . Fabricators . | . . . . . . . . Repair Stations . | . . . . . . . . Recycling Units . | . . . . . . . . Scanalyzers . | . . . . . . . . Garrison Access . | . . . . . . . . Data Cores Recovered . | . . . . . . . . Used . | . . . . . . . . Hacking Detections 4 | . . . . 2 . . 2 Full Trace Events 2 | . . . . 1 . . 1 Feedback Events . | . . . . . . . . Feedback Blocked . | . . . . . . . . Robot Schematics Acquired . | . . . . . . . . Robots Built . | . . . . . . . . Matter . | . . . . . . . . Time . | . . . . . . . . Total Robot Build Rating . | . . . . . . . . Part Schematics Acquired . | . . . . . . . . Parts Built . | . . . . . . . . Matter . | . . . . . . . . Time . | . . . . . . . . Total Part Build Rating . | . . . . . . . . Parts Repaired . | . . . . . . . . Time . | . . . . . . . . Parts Recycled . | . . . . . . . . Recycled Matter . | . . . . . . . . Retrieved Matter . | . . . . . . . . Retrieved Components . | . . . . . . . . Parts Scanalyzed . | . . . . . . . . Part Schematics Acquired . | . . . . . . . . Parts Damaged . | . . . . . . . . Bothacking | -11 -10 -9 -8 -8 -8 -6 -6 ------------ Run | Scr Mat Mat Mat Sto Rec Fac Ext Used RIF Installer . | . . . . . . . . Robots Hacked . | . . . . . . . . Non-combat . | . . . . . . . . Combat . | . . . . . . . . Robot Hacks Applied . | . . . . . . . . Relay Couplers Released . | . . . . . . . . Robots Rewired 14 | . . . . . . . 14 Allies Hacked . | . . . . . . . . Hacks Repelled . | . . . . . . . . Allies | -11 -10 -9 -8 -8 -8 -6 -6 -------- Run | Scr Mat Mat Mat Sto Rec Fac Ext Total Allies 15 | . . . . . . . 15 Largest Group 9 | . . . . . . . 9 Highest-Rated Group 217 | . . . . . . . 217 Highest-Rated Ally 31 | . . . . . . . 31 Total Orders . | . . . . . . . . Ally Attacks 31 | . . . . . . . 31 Total Damage 597 | . . . . . . . 597 Kills 2 | . . . . . . . 2 Allies Corrupted . | . . . . . . . . Allies Melted 1 | . . . . . . . 1 Intel | -11 -10 -9 -8 -8 -8 -6 -6 ------- Run | Scr Mat Mat Mat Sto Rec Fac Ext Robot Analysis Total . | . . . . . . . . Derelict Logs Recovered . | . . . . . . . . Drone Launches . | . . . . . . . . Drone Recoveries . | . . . . . . . . Exploration | -11 -10 -9 -8 -8 -8 -6 -6 ------------- Run | Scr Mat Mat Mat Sto Rec Fac Ext Turns Passed 2609 | 52 254 208 449 455 177 260 754 Spaces Moved 1663 | 41 141 134 254 213 112 325 443 Core 11 | 9 . . . . . . 2 Treads 372 | . . . 36 213 112 11 . Legs 674 | 32 141 134 218 . . . 149 Wheels . | . . . . . . . . Hover 606 | . . . . . . 314 292 Flight . | . . . . . . . . Fastest Speed 50 | 50 120 150 120 152 158 52 52 Average Speed 108 | 104 142 150 127 156 158 56 78 Slowest Speed 300 | 120 150 150 155 158 158 160 300 Overloaded Moves . | . . . . . . . . Propulsion Burnouts . | . . . . . . . . Robots Hopped . | . . . . . . . . Cave-ins Triggered . | . . . . . . . . Exploration Rate (%) 25 | 3 22 16 24 43 34 11 48 Regions Visited 7 Branch Regions 3 Pre-discovered Areas . | . . . . . . . . Known Exits Taken . | . . . . . . . . Unknown Exits Taken 7 | 1 1 1 1 1 1 1 . Scrap Searched . | . . . . . . . . Spaces Dug 15 | . . . . . . . 15 Terrain Destroyed 21 | . . . . . . . 21 Melee . | . . . . . . . . Projectile 21 | . . . . . . . 21 AOE . | . . . . . . . . Terrain Rammed . | . . . . . . . . Walls Destroyed . | . . . . . . . . Machines Disabled . | . . . . . . . . Actions | -11 -10 -9 -8 -8 -8 -6 -6 --------- Run | Scr Mat Mat Mat Sto Rec Fac Ext Total 2181 | 47 172 140 334 268 112 390 718 Wait 102 | . 3 . 28 12 . 28 31 Move 1656 | 40 140 133 253 212 111 324 443 Hop . | . . . . . . . . Pick Up 41 | 1 10 3 7 1 . 11 8 Fast Attach 34 | 6 1 . 2 2 . 3 20 Attach 16 | . 1 2 4 1 . 4 4 Detach 1 | . . . . 1 . . . Swap 19 | . 1 . 4 3 . 2 9 Drop 46 | . 2 1 9 3 . 11 20 Fire 165 | . 14 1 27 33 . 7 83 Melee . | . . . . . . . . Ram 2 | . . . . . . . 2 Kick 7 | . . . . . . . 7 Crush 1 | . . . . . 1 . . Escape Stasis 26 | . . . . . . . 26 Rewire 65 | . . . . . . . 65 Trap . | . . . . . . . . Miscellaneous . | . . . . . . . . Route ------- -11/Scrapyard -10/Materials -9/Materials -8/Materials -8/Storage -8/Recycling -6/Factory (discovered 2 exits: [*Low] / *Ext) -6/Extension History --------- Turn | Location | Event 10 | -11/Scrapyard | Discovered new exit (range 14) 53 | -11/Scrapyard | Entered Materials 286 | -10/Materials | Discovered new exit (range 6) 307 | -10/Materials | Entered another Materials area 307 | -9/Materials | Evolved 2 slots: Utility x2 329 | -9/Materials | Build established: Mutant 478 | -9/Materials | Discovered new exit (range 9) 515 | -9/Materials | Entered another Materials area 515 | -8/Materials | Evolved 2 slots: Propulsion x1, Utility x1 871 | -8/Materials | Discovered new exit (range 3) 964 | -8/Materials | Entered Storage 1104 | -8/Storage | Garrison activated, responded to threat 1412 | -8/Storage | Used back door to open Recycling access 1412 | -8/Storage | Discovered new exit (range 5) 1419 | -8/Storage | Entered Recycling 1420 | -8/Recycling | Joined Derelict attack on 0b10 via Recycling 1429 | -8/Recycling | Spotter reported a threat 1440 | -8/Recycling | Spotter reported a threat 1441 | -8/Recycling | Spotter reported a threat 1473 | -8/Recycling | Spotter reported a threat 1485 | -8/Recycling | Spotter reported a threat 1493 | -8/Recycling | Spotter reported a threat 1534 | -8/Recycling | Spotter reported a threat 1534 | -8/Recycling | Spotter reported a threat 1534 | -8/Recycling | Spotter reported a threat 1535 | -8/Recycling | Spotter reported a threat 1582 | -8/Recycling | Spotter reported a threat 1582 | -8/Recycling | Spotter reported a threat 1582 | -8/Recycling | Spotter reported a threat 1582 | -8/Recycling | Spotter reported a threat 1589 | -8/Recycling | Discovered new exit (range 6) 1596 | -8/Recycling | Entered Factory 1596 | -6/Factory | Evolved 4 slots: Utility x3, Weapon x1 1605 | -6/Factory | 2 allies followed out of Recycling 1769 | -6/Factory | Discovered new exit (range 14) 1854 | -6/Factory | Discovered new exit (range 6) 1856 | -6/Factory | Entered Extension 1894 | -6/Extension | Rescued a captive Derelict 1906 | -6/Extension | Build established: Gunner 2206 | -6/Extension | First assault squad dispatched 2338 | -6/Extension | Lost 3 parts (1n2u) 2466 | -6/Extension | Core integrity fell below 50% 2500 | -6/Extension | Lost 12 parts (2p3n2u5w) 2610 | -6/Extension | Self-destructed Last Messages --------------- 02481_ Kicked G-50 Soldier out of the way. 02481_ R-10 Processor collects Targeting Computer. 02482_ Slammed into G-50 Soldier. 02486_ System corrupted: Energy discharge (-22). 02486_ Kicked G-50 Soldier out of the way. 02486_ R-10 Processor collects Carbon-fiber Leg. 02488_ Slammed into G-50 Soldier. 02489_ G-50 Soldier destroyed. 02492_ Acquired Hvy. Laser. 02495_ Acquired 10 matter. 02498_ Acquired Carbon-fiber Leg. 02502_ Acquired 15 matter. 02505_ Acquired Lgt. Angular Momentum Engine. 02507_ Acquired Adv. Heat Sink. 02509_ Acquired 25 matter. 02547_ System corrupted: Heat flow error (+283). 02591_ R-10 Processor destroyed. 02601_ R-10 Processor collects Hpw. Tractor Beam. 02605_ R-10 Processor collects Com. Wheel. 02609_ Hvy. Laser destroyed. Map ----- +----------------------------------------------------+ | | | | | | | | | | | | | | | | | | | ?????????????????????????????????????????????????? | | ??????????????????????????????#######????????????? | | ????????#######?????????????? #####????????? | | ????????# ############### ???????? | | ######### " "T ????? | | %% % %"^% "" ??? | | % "^^"" ??? | | % ^ "" ########## ??? | | ######### T" #??????????? ## ####??????? | | ####???????# "" #?????????????#####/#?????????? | | #??????????# "" #???????????? """"" #?????????? | | #??????????# #???????????? ""T"" #?????????? | | #??###?????# #??????????? #?????????? | | #### #?????# #???????????! #?????????? | | "?????####### #?????????? !!* ]##????????? | | #### "???????????# ###########s! !* Y #????????? | | ???#T#???????????# R!= @ s/ !* #?????????? | | ???###???????????############# = #?????????? | | ??????????????????????????????##" ""####?????????? | | ?????????????????????????????????R""#????????????? | | ??????????????????????????????????""#????????????? | | ????????????????????????????????????#????????????? | | ?????????????????????????????????????????????????? | | ?????????????????????????????????????????????????? | | ?????????????????????????????????????????????????? | | ?????????????????????????????????????????????????? | | ?????????????????????????????????????????????????? | | ?????????????????????????????????????????????????? | | ?????????????????????????????????????????????????? | | ?????????????????????????????????????????????????? | | ?????????????????????????????????????????????????? | | ?????????????????????????????????????????????????? | | ?????????????????????????????????????????????????? | | ?????????????????????????????????????????????????? | | ?????????????????????????????????????????????????? | | ?????????????????????????????????????????????????? | | ?????????????????????????????????????????????????? | | ?????????????????????????????????????????????????? | | ?????????????????????????????????????????????????? | | ?????????????????????????????????????????????????? | | ?????????????????????????????????????????????????? | +----------------------------------------------------+ Best States ------------- Heat Dissipation 75 Energy Generation 18 Energy Capacity 290 Matter Stores 300 Matter Capacity 300 Sight Range 20 Terrain Scan Density 10 Armor Coverage 150 Evasion (%) 54 Targeting Accuracy 24 Melee Accuracy 10 Recoil Reduction 3 Offensive Hacking 12 Item Schematics ----------------- None Robot Schematics ------------------ None Fabricated ------------ Nothing Alien Tech Used ----------------- None Achievements -------------- None Challenges ------------ None Game ------ Seed GuidedPointLog Manual? 0 Play Time 00:20:25 Cumulative 224.5 hours Start 2021.05.23 @ 16:52:18 End 2021.05.23 @ 17:13:54 Sessions 1 Manual Loads 0 Difficulty Rogue Special Mode None Game No. 432 Rogue 277 Adventurer 148 Explorer 7 Win Type - Total 9 Types 7/0/1/1/0/0/0/0/0 Lore% 75 Gallery% 86 Achievement% 64 Wizard Run 0 Options --------- ASCII 0 Keyboard 0 Movement Numpad Keybinds 0 Fullscreen 1 Font 18/CogNarrow Map View 76x50 Tactical HUD 1 Map Filters NONE Filters NONE Steam 1 RUN: 69d9a36c-7f7f-4883-b784-6b156c947c79